bitfinex/quotes_BTCUSD_20241002
["timestamp","ask_amount","ask_price","bid_price","bid_amount"]
[1727865579138,0.02648822,61506.0,61505.0,0.37227932]
[1727865579351,0.001,61506.0,61505.0,0.37227932]
[1727865579575,0.001,61506.0,61505.0,0.5235814]
[1727865580022,0.001,61506.0,61505.0,0.5215814]
[1727865580237,0.001,61506.0,61505.0,0.5265814]
[1727865580710,0.24387765,61517.0,61505.0,0.5265814]
[1727865580711,0.24387765,61517.0,61516.0,0.162559]
[1727865581144,0.24387765,61517.0,61516.0,0.20124716]
[1727865581357,0.000819,61517.0,61516.0,0.20124716]
[1727865582443,0.02630339,61517.0,61516.0,0.20124716]
[1727865583348,0.02630339,61517.0,61516.0,0.60637207]
[1727865583564,0.02630339,61517.0,61516.0,0.60312121]
[1727865583782,0.02630339,61517.0,61516.0,0.60912121]
[1727865584462,0.02630339,61517.0,61516.0,0.60312121]
[1727865584728,0.02630339,61517.0,61516.0,0.60912121]
[1727865585193,0.000819,61522.0,61521.0,0.48952005]
[1727865585407,0.24305865,61529.0,61527.0,0.51040405]
[1727865585640,0.24305865,61529.0,61527.0,0.54908439]
[1727865586065,0.162493,61541.0,61527.0,0.54908439]
[1727865586490,0.324992,61540.0,61527.0,0.54908439]
[1727865586706,0.001819,61528.0,61527.0,0.54908439]
[1727865586926,0.001819,61528.0,61527.0,0.32211034]
[1727865587575,0.001819,61528.0,61527.0,0.33611034]
[1727865587797,0.000819,61528.0,61527.0,0.21521034]
[1727865588282,0.001819,61528.0,61527.0,0.20421034]
[1727865588493,0.000819,61528.0,61527.0,0.03868034]
[1727865588709,0.32904045,61528.0,61527.0,0.04168034]
[1727865588947,0.32904045,61528.0,61527.0,0.003]
[1727865588948,0.35342822,61528.0,61527.0,0.003]
[1727865589158,0.325076,61525.0,61519.0,0.0795]
[1727865589380,0.162548,61520.0,61519.0,0.0795]
[1727865589638,0.162555,61518.0,61514.0,0.237964]
[1727865589855,0.162555,61518.0,61514.0,0.237963]
[1727865590069,0.162555,61518.0,61515.0,0.16256]
[1727865590287,0.325101,61520.0,61514.0,0.0754]
[1727865590288,0.162558,61517.0,61514.0,0.0754]
[1727865590506,0.325107,61519.0,61514.0,0.0754]
[1727865590730,0.162557,61517.0,61514.0,0.237963]
[1727865591175,0.162551,61519.0,61515.0,0.16256]
[1727865591388,0.001,61520.0,61516.0,0.162557]
[1727865591597,0.163549,61520.0,61517.0,0.162556]
[1727865591805,0.163549,61520.0,61516.0,0.162559]
[1727865592020,0.325095,61521.0,61514.0,0.0794]
[1727865592446,0.162555,61518.0,61514.0,0.241963]
[1727865592666,0.16255,61520.0,61515.0,0.325122]
[1727865592882,0.162551,61520.0,61516.0,0.162558]
[1727865593568,0.18803411,61520.0,61516.0,0.162558]
[1727865593984,0.18803411,61520.0,61516.0,0.163558]
[1727865594853,0.18903411,61520.0,61516.0,0.163558]
[1727865595506,0.162551,61519.0,61516.0,0.163558]
[1727865596443,0.162551,61519.0,61516.0,0.162558]
[1727865596670,0.162551,61519.0,61516.0,0.164558]
[1727865596885,0.487655,61519.0,61516.0,0.002]
[1727865597961,0.162554,61518.0,61516.0,0.002]
[1727865598176,0.162552,61519.0,61516.0,0.164559]
[1727865598631,0.18803211,61520.0,61517.0,0.162555]
[1727865599308,0.18803211,61520.0,61518.0,0.03845734]
[1727865599768,0.18903211,61520.0,61517.0,0.162555]
[1727865600035,0.18903211,61520.0,61519.0,0.03845663]
[1727865600500,0.02648311,61520.0,61516.0,0.001638]
[1727865600726,0.18903111,61520.0,61519.0,0.03845663]
[1727865600955,0.18903311,61520.0,61518.0,0.001]
[1727865601199,0.18803111,61520.0,61519.0,0.03845663]
[1727865601645,0.18903111,61520.0,61519.0,0.03845663]
[1727865601868,0.02548311,61520.0,61518.0,0.162554]
[1727865602118,0.02648311,61520.0,61519.0,0.03845663]
[1727865602383,0.02648311,61520.0,61519.0,0.20100763]
[1727865602618,0.18803111,61520.0,61519.0,0.03845663]
[1727865602850,0.18903111,61520.0,61519.0,0.03945663]
[1727865603063,0.18903111,61520.0,61519.0,0.001]
[1727865603289,0.35158311,61520.0,61516.0,0.001638]
[1727865603506,0.02648311,61520.0,61519.0,0.001]
[1727865603775,0.18903211,61520.0,61519.0,0.001]
[1727865603994,0.18903211,61520.0,61519.0,0.03854737]
[1727865604235,0.162551,61519.0,61516.0,0.164195]
[1727865604481,0.02648311,61520.0,61519.0,0.162551]
[1727865604726,0.02648311,61520.0,61518.0,0.162554]
[1727865604969,0.02548311,61520.0,61519.0,0.20109433]
[1727865605191,0.02648311,61520.0,61519.0,0.20109433]
[1727865605653,0.02548311,61520.0,61519.0,0.20109433]
[1727865606093,0.02548311,61520.0,61519.0,0.20309433]
[1727865606341,0.02548311,61520.0,61519.0,0.20109433]
[1727865606777,0.02548311,61520.0,61519.0,0.21309433]
[1727865607629,0.02648311,61520.0,61519.0,0.21609433]
[1727865609750,0.18903111,61520.0,61519.0,0.05354333]
[1727865610812,0.18903111,61520.0,61519.0,0.04154333]
[1727865611460,0.18803111,61520.0,61519.0,0.04018133]
[1727865611664,0.19003111,61520.0,61519.0,0.04018133]
[1727865612298,0.19003111,61520.0,61519.0,0.001638]
[1727865612756,0.35472556,61520.0,61519.0,0.04018133]
[1727865612968,0.35472556,61520.0,61519.0,0.004638]
[1727865613195,0.56992312,61520.0,61519.0,0.004638]
[1727865613414,0.76132312,61520.0,61519.0,0.001638]
[1727865613629,0.62832556,61520.0,61519.0,0.001638]
[1727865613883,0.60284245,61520.0,61519.0,0.001638]
[1727865614113,1.22099545,61520.0,61519.0,0.001638]
[1727865614318,1.36455806,61520.0,61519.0,0.001638]
[1727865614528,1.46089926,61520.0,61519.0,0.001638]
[1727865614738,1.46689926,61520.0,61519.0,0.001638]
[1727865614952,1.37155806,61520.0,61519.0,0.001638]
[1727865615202,1.58455899,61520.0,61519.0,0.001638]
[1727865615414,1.47688398,61520.0,61519.0,0.001638]
[1727865615626,1.6047073,61520.0,61519.0,0.001638]
[1727865615836,1.6037073,61520.0,61519.0,0.001638]
[1727865616047,1.70303202,61520.0,61519.0,0.001638]
[1727865616481,1.70303202,61520.0,61519.0,0.002638]
[1727865616705,1.70103202,61520.0,61519.0,0.002638]
[1727865616915,1.72536719,61520.0,61519.0,0.002638]
[1727865617354,1.6037073,61520.0,61519.0,0.002638]
[1727865617564,1.6057073,61520.0,61519.0,0.002638]
[1727865619564,1.64820374,61520.0,61519.0,0.002638]
[1727865621503,1.76976098,61520.0,61519.0,0.002638]
[1727865622400,1.76974266,61520.0,61519.0,0.002638]
[1727865622842,0.341485,61506.0,61501.0,0.0002]
[1727865623080,0.73532869,61506.0,61505.0,0.04021182]
[1727865623299,0.73332869,61506.0,61505.0,0.001638]
[1727865623508,0.75882216,61506.0,61505.0,0.001638]
[1727865624455,0.76082216,61506.0,61505.0,0.001638]
[1727865624716,1.54346316,61506.0,61505.0,0.001638]
[1727865625142,1.54146316,61506.0,61505.0,0.001638]
[1727865625568,1.54146316,61506.0,61505.0,0.002638]
[1727865625569,1.56346316,61506.0,61505.0,0.002638]
[1727865625789,1.32331392,61506.0,61505.0,0.002638]
[1727865626004,1.32331392,61506.0,61505.0,0.001638]
[1727865626005,0.45277292,61506.0,61505.0,0.001638]
[1727865626220,0.47977292,61506.0,61505.0,0.002638]
[1727865626688,0.47977292,61506.0,61505.0,0.001638]
[1727865626689,0.46677292,61506.0,61505.0,0.001638]
[1727865627123,0.47977292,61506.0,61505.0,0.002638]
[1727865628692,0.46677292,61506.0,61505.0,0.001638]
[1727865628902,0.46677292,61506.0,61505.0,0.002638]
[1727865629114,0.47977292,61506.0,61505.0,0.002638]
[1727865629608,0.21718792,61506.0,61505.0,0.165226]
[1727865629882,0.05249347,61506.0,61505.0,0.165226]
[1727865630088,0.05249347,61506.0,61505.0,0.28353061]
[1727865630527,0.02549347,61506.0,61505.0,0.38043061]
[1727865631843,0.02549347,61506.0,61505.0,0.39726324]
[1727865631844,0.02849347,61506.0,61505.0,0.39726324]
[1727865632120,0.02549347,61506.0,61505.0,0.39726324]
[1727865632381,0.02649347,61506.0,61505.0,0.39826324]
[1727865632803,0.02749347,61506.0,61505.0,0.41226324]
[1727865633236,0.02549347,61506.0,61505.0,0.39726324]
[1727865633457,0.02549347,61506.0,61505.0,0.36990451]
[1727865633679,0.02549347,61506.0,61505.0,0.38490451]
[1727865633680,0.02749347,61506.0,61505.0,0.38490451]
[1727865634098,0.02749347,61506.0,61505.0,0.22231651]
[1727865634315,0.19007847,61506.0,61505.0,0.12441651]
[1727865634525,0.19007847,61506.0,61505.0,0.11302461]
[1727865634953,0.02549347,61506.0,61505.0,0.09802461]
[1727865635170,0.02749347,61506.0,61505.0,0.27061261]
[1727865635820,0.35377292,61506.0,61505.0,0.10002461]
[1727865636033,0.35377292,61506.0,61505.0,0.10402461]
[1727865636290,0.45418051,61506.0,61505.0,0.02472461]
[1727865636733,0.45418051,61506.0,61505.0,0.007638]
[1727865636951,0.35377292,61506.0,61505.0,0.007638]
[1727865637866,0.19118792,61506.0,61505.0,0.007638]
[1727865638324,0.35377292,61506.0,61505.0,0.007638]
[1727865639555,0.35377292,61506.0,61505.0,0.02472412]
[1727865640033,0.35377292,61506.0,61505.0,0.007638]
[1727865640999,0.45418171,61506.0,61505.0,0.007638]
[1727865641253,0.35377292,61506.0,61505.0,0.007638]
[1727865641475,0.45577292,61506.0,61505.0,0.007638]
[1727865641705,0.45377292,61506.0,61505.0,0.007638]
[1727865641935,0.45577292,61506.0,61505.0,0.003638]
[1727865642164,0.45877292,61506.0,61505.0,0.001638]
[1727865642394,0.46577292,61506.0,61505.0,0.001638]
[1727865642618,0.45977292,61506.0,61505.0,0.001638]
[1727865643272,0.46077292,61506.0,61505.0,0.002638]
[1727865643496,0.46277292,61506.0,61505.0,0.002638]
[1727865643741,0.59717261,61506.0,61505.0,0.002638]
[1727865643990,1.42978589,61506.0,61505.0,0.002638]
[1727865644220,1.38390261,61506.0,61505.0,0.002638]
[1727865645357,1.39590261,61506.0,61505.0,0.002638]
[1727865645788,1.39390261,61506.0,61505.0,0.002638]
[1727865646006,1.02247561,61506.0,61505.0,0.002638]
[1727865646917,1.02447561,61506.0,61505.0,0.002638]
[1727865647890,1.02247561,61506.0,61505.0,0.002638]
[1727865648553,1.02447561,61506.0,61505.0,0.002638]
[1727865649634,1.02247561,61506.0,61505.0,0.002638]
[1727865651706,0.88807592,61506.0,61505.0,0.002638]
[1727865653361,0.89007592,61506.0,61505.0,0.002638]
[1727865656573,0.93869094,61506.0,61505.0,0.002638]
[1727865657316,0.89007592,61506.0,61505.0,0.002638]
[1727865657565,0.93876883,61506.0,61505.0,0.002638]
[1727865657815,0.89007592,61506.0,61505.0,0.002638]
[1727865658060,0.92431632,61506.0,61505.0,0.002638]
[1727865658549,0.99723886,61506.0,61505.0,0.002638]
[1727865658797,0.67973586,61506.0,61505.0,0.002638]
[1727865659067,1.37837757,61506.0,61505.0,0.002638]
[1727865659320,0.88926982,61506.0,61505.0,0.002638]
[1727865659561,0.81620792,61506.0,61505.0,0.002638]
[1727865659804,0.89127433,61506.0,61505.0,0.002638]
[1727865660043,0.81820792,61506.0,61505.0,0.002638]
[1727865660506,0.88927118,61506.0,61505.0,0.002638]
[1727865660725,0.81620792,61506.0,61505.0,0.002638]
[1727865660945,0.81820792,61506.0,61505.0,0.002638]
[1727865661167,0.89127183,61506.0,61505.0,0.002638]
[1727865661388,0.81620792,61506.0,61505.0,0.002638]
[1727865662086,0.81820792,61506.0,61505.0,0.002638]
[1727865662314,0.83615347,61506.0,61505.0,0.002638]
[1727865663727,1.06126657,61506.0,61505.0,0.002638]
[1727865663954,0.8640912,61506.0,61505.0,0.002638]
[1727865664625,0.8440912,61506.0,61505.0,0.001638]
[1727865664849,0.79820792,61506.0,61505.0,0.001638]
[1727865665090,0.59010092,61506.0,61505.0,0.002638]
[1727865665319,0.58752894,61506.0,61505.0,0.002638]
[1727865665573,0.36577292,61506.0,61505.0,0.002638]
[1727865666064,0.37977292,61506.0,61505.0,0.002638]
[1727865666544,0.36677292,61506.0,61505.0,0.084538]
[1727865666773,0.02549347,61506.0,61505.0,0.343626]
[1727865667005,0.02549347,61506.0,61505.0,0.35980956]
[1727865667235,0.03349347,61506.0,61505.0,0.35980956]
[1727865667461,0.02549347,61506.0,61505.0,0.35980956]
[1727865667923,0.35977292,61506.0,61505.0,0.10072156]
[1727865668175,0.36877292,61506.0,61505.0,0.10172156]
[1727865668404,0.46877292,61506.0,61505.0,0.002638]
[1727865668660,0.46177292,61506.0,61505.0,0.001638]
[1727865668896,0.56239165,61506.0,61505.0,0.001638]
[1727865669116,2.01899533,61506.0,61505.0,0.001638]
[1727865669344,1.83696565,61506.0,61505.0,0.001638]
[1727865669560,1.53739431,61506.0,61505.0,0.001638]
[1727865669786,1.32718131,61506.0,61505.0,0.002638]
[1727865670028,1.23272292,61506.0,61505.0,0.002638]
[1727865670271,1.35447894,61506.0,61505.0,0.002638]
[1727865670504,1.22872292,61506.0,61505.0,0.002638]
[1727865670789,1.23772292,61506.0,61505.0,0.002638]
[1727865671008,1.22872292,61506.0,61505.0,0.002638]
[1727865671231,1.39360474,61506.0,61505.0,0.002638]
[1727865671904,1.38760474,61506.0,61505.0,0.001638]
[1727865672120,1.40160474,61506.0,61505.0,0.001638]
[1727865672550,1.37243757,61506.0,61505.0,0.001638]
[1727865672759,1.34443757,61506.0,61505.0,0.001638]
[1727865672970,1.35843808,61506.0,61505.0,0.001638]
[1727865673185,1.3724355,61506.0,61505.0,0.001638]
[1727865673629,1.25072292,61506.0,61505.0,0.001638]
[1727865673857,1.37243184,61506.0,61505.0,0.001638]
[1727865674569,1.25072292,61506.0,61505.0,0.001638]
[1727865674788,1.08827292,61506.0,61505.0,0.001638]
[1727865675008,0.77207992,61506.0,61505.0,0.001638]
[1727865675233,0.89177815,61506.0,61505.0,0.001638]
[1727865675446,0.89377815,61506.0,61505.0,0.001638]
[1727865676541,0.93696174,61506.0,61505.0,0.001638]
[1727865676965,0.77207992,61506.0,61505.0,0.001638]
[1727865677741,0.77007992,61506.0,61505.0,0.001638]
[1727865677963,0.94051334,61506.0,61505.0,0.001638]
[1727865678183,0.52946819,61506.0,61505.0,0.001638]
[1727865678403,0.55381517,61506.0,61505.0,0.001638]
[1727865678616,0.48077292,61506.0,61505.0,0.001638]
[1727865678831,0.52948289,61506.0,61505.0,0.001638]
[1727865679050,0.55381517,61506.0,61505.0,0.001638]
[1727865679266,0.55581517,61506.0,61505.0,0.001638]
[1727865679482,0.71410409,61506.0,61505.0,0.001638]
[1727865680142,0.61671292,61506.0,61505.0,0.001638]
[1727865680368,0.60260706,61506.0,61505.0,0.001638]
[1727865680600,0.60262589,61506.0,61505.0,0.001638]
[1727865680826,0.48077292,61506.0,61505.0,0.001638]
[1727865681295,0.57825512,61506.0,61505.0,0.001638]
[1727865681513,0.48077292,61506.0,61505.0,0.001638]
[1727865681743,0.60462589,61506.0,61505.0,0.001638]
[1727865681972,0.58943792,61506.0,61505.0,0.001638]
[1727865683332,0.58743792,61506.0,61505.0,0.001638]
[1727865683555,0.71133921,61506.0,61505.0,0.001638]
[1727865683801,0.58943792,61506.0,61505.0,0.001638]
[1727865684037,0.58743792,61506.0,61505.0,0.001638]
[1727865684273,0.70934262,61506.0,61505.0,0.001638]
[1727865684526,0.58743792,61506.0,61505.0,0.001638]
[1727865684772,0.48077292,61506.0,61505.0,0.001638]
[1727865685000,0.64646692,61506.0,61505.0,0.001638]
[1727865685228,0.64295492,61506.0,61505.0,0.001638]
[1727865685666,0.60569492,61506.0,61505.0,0.001638]
[1727865685890,0.48277292,61506.0,61505.0,0.001638]
[1727865686169,0.60271277,61506.0,61505.0,0.001638]
[1727865686395,0.48077292,61506.0,61505.0,0.001638]
[1727865686822,0.69239592,61506.0,61505.0,0.001638]
[1727865689757,0.69039592,61506.0,61505.0,0.001638]
[1727865690705,1.08600892,61506.0,61505.0,0.001638]
[1727865690854,0.97056492,61506.0,61505.0,0.001638]
[1727865691771,0.81006292,61506.0,61505.0,0.001638]
[1727865691983,0.81014287,61506.0,61505.0,0.001638]
[1727865692637,0.80814287,61506.0,61505.0,0.001638]
[1727865693655,0.81014287,61506.0,61505.0,0.001638]
[1727865694982,0.80814287,61506.0,61505.0,0.001638]
[1727865695440,0.48085287,61506.0,61505.0,0.081538]
[1727865695667,0.38085287,61506.0,61505.0,0.081538]
[1727865696313,0.36685287,61506.0,61505.0,0.081538]
[1727865696735,0.38085287,61506.0,61505.0,0.081538]
[1727865696921,0.35285287,61506.0,61505.0,0.081538]
[1727865697147,0.36485287,61506.0,61505.0,0.081538]
[1727865697337,0.37385287,61506.0,61505.0,0.081538]
[1727865697708,0.36485287,61506.0,61505.0,0.081538]
[1727865698133,0.37185287,61506.0,61505.0,0.081538]
[1727865698556,0.37185287,61506.0,61505.0,0.001638]
[1727865705345,0.47185287,61506.0,61505.0,0.001638]
[1727865705770,1.74832687,61506.0,61505.0,0.001638]
[1727865705978,1.70195987,61506.0,61505.0,0.001638]
[1727865706410,1.55500887,61506.0,61505.0,0.001638]
[1727865706643,1.69434063,61506.0,61505.0,0.001638]
[1727865706856,1.69429893,61506.0,61505.0,0.001638]
[1727865707064,1.87318075,61506.0,61505.0,0.001638]
[1727865707286,1.91429069,61506.0,61505.0,0.001638]
[1727865707494,1.88629069,61506.0,61505.0,0.001638]
[1727865707712,2.50608587,61506.0,61505.0,0.001638]
[1727865707951,2.24008887,61506.0,61505.0,0.001638]
[1727865708161,2.18376387,61506.0,61505.0,0.001638]
[1727865708575,2.19776387,61506.0,61505.0,0.001638]
[1727865708985,1.90743187,61506.0,61505.0,0.001638]
[1727865709203,2.05831369,61506.0,61505.0,0.001638]
[1727865709674,2.07231369,61506.0,61505.0,0.001638]
[1727865712461,1.90743187,61506.0,61505.0,0.001638]
[1727865713505,1.76825387,61506.0,61505.0,0.001638]
[1727865713713,1.74570687,61506.0,61505.0,0.001638]
[1727865713922,1.72296087,61506.0,61505.0,0.001638]
[1727865717498,1.64536087,61506.0,61505.0,0.001638]
[1727865717702,1.64336087,61506.0,61505.0,0.001638]
[1727865717881,1.64536087,61506.0,61505.0,0.001638]
[1727865718325,1.74761387,61506.0,61505.0,0.001638]
[1727865719157,1.88715892,61506.0,61505.0,0.001638]
[1727865719785,1.65181387,61506.0,61505.0,0.001638]
[1727865719991,1.31586387,61506.0,61505.0,0.001638]
[1727865721256,0.98680687,61506.0,61505.0,0.001638]
[1727865721482,0.81488187,61506.0,61505.0,0.001638]
[1727865723033,1.27341387,61506.0,61505.0,0.001638]
[1727865723502,1.26200587,61506.0,61505.0,0.001638]
[1727865724363,1.40827034,61506.0,61505.0,0.001638]
[1727865724605,1.37487534,61506.0,61505.0,0.001638]
[1727865726187,1.22861087,61506.0,61505.0,0.001638]
[1727865728249,1.22661087,61506.0,61505.0,0.001638]
[1727865728532,0.70022212,61506.0,61505.0,0.001638]
[1727865728795,0.48085287,61506.0,61505.0,0.001638]
[1727865729558,0.46885287,61506.0,61505.0,0.001638]
[1727865729826,0.37985287,61506.0,61505.0,0.001638]
[1727865730069,0.37985287,61506.0,61505.0,0.175838]
[1727865730745,0.36585287,61506.0,61505.0,0.175838]
[1727865731203,0.37985287,61506.0,61505.0,0.175838]
[1727865732065,0.37985287,61506.0,61505.0,0.081438]
[1727865732066,0.63126181,61506.0,61505.0,0.081438]
[1727865732276,0.68000752,61506.0,61505.0,0.081438]
[1727865732502,0.67999572,61506.0,61505.0,0.081438]
[1727865732740,0.70438207,61506.0,61505.0,0.081438]
[1727865733216,1.24204918,61506.0,61505.0,0.001638]
[1727865733464,1.14455081,61506.0,61505.0,0.001638]
[1727865734653,1.29076554,61506.0,61505.0,0.001638]
[1727865734869,1.26376554,61506.0,61505.0,0.001638]
[1727865735100,1.13155081,61506.0,61505.0,0.001638]
[1727865735333,1.45664736,61506.0,61505.0,0.001638]
[1727865735578,1.14555081,61506.0,61505.0,0.001638]
[1727865736744,1.04033781,61506.0,61505.0,0.001638]
[1727865736952,1.16218007,61506.0,61505.0,0.001638]
[1727865737172,0.72972875,61506.0,61505.0,0.001638]
[1727865737402,0.63226181,61506.0,61505.0,0.001638]
[1727865737668,0.55395276,61506.0,61505.0,0.001638]
[1727865737907,0.63226181,61506.0,61505.0,0.001638]
[1727865738136,0.7053617,61506.0,61505.0,0.001638]
[1727865738348,0.63226181,61506.0,61505.0,0.001638]
[1727865738562,0.68099249,61506.0,61505.0,0.001638]
[1727865738774,0.7053617,61506.0,61505.0,0.001638]
[1727865739490,0.55395276,61506.0,61505.0,0.001638]
[1727865739717,0.38085287,61506.0,61505.0,0.091738]
[1727865739937,0.21826787,61506.0,61505.0,0.332026]
[1727865740159,0.21826787,61506.0,61505.0,0.3482553]
[1727865740394,0.21826787,61506.0,61505.0,0.1856673]
[1727865740636,0.36685287,61506.0,61505.0,0.1856673]
[1727865740856,0.37385287,61506.0,61505.0,0.1856673]
[1727865741299,0.36685287,61506.0,61505.0,0.1856673]
[1727865741519,0.35285287,61506.0,61505.0,0.1856673]
[1727865741737,0.35385287,61506.0,61505.0,0.1856673]
[1727865741961,0.35885287,61506.0,61505.0,0.1856673]
[1727865742176,0.35885287,61506.0,61505.0,0.3482553]
[1727865742177,0.03157342,61506.0,61505.0,0.3482553]
[1727865742909,0.000819,61516.0,61515.0,0.162561]
[1727865743150,0.000819,61516.0,61515.0,0.50486713]
[1727865743618,0.000819,61516.0,61515.0,0.35345819]
[1727865744575,0.011819,61516.0,61515.0,0.35345819]
[1727865744811,0.011819,61516.0,61515.0,0.50486713]
[1727865745046,0.000819,61522.0,61521.0,0.333346]
[1727865745499,0.000819,61528.0,61527.0,0.16253]
[1727865745754,0.000819,61528.0,61527.0,0.35580823]
[1727865746002,0.000819,61528.0,61527.0,0.35255797]
[1727865746687,0.001819,61528.0,61527.0,0.35255797]
[1727865746916,0.000819,61528.0,61527.0,0.35255797]
[1727865748563,0.000819,61528.0,61527.0,0.36255797]
[1727865748564,0.001819,61528.0,61527.0,0.36255797]
[1727865748782,0.001819,61528.0,61527.0,0.02612797]
[1727865749000,0.001819,61528.0,61527.0,0.01]
[1727865749001,0.164346,61528.0,61527.0,0.01]
[1727865749243,0.165346,61528.0,61527.0,0.016]
[1727865749474,0.165346,61528.0,61527.0,0.03211523]
[1727865749697,0.165346,61528.0,61527.0,0.016]
[1727865749924,0.165346,61528.0,61527.0,0.03211523]
[1727865750157,0.165346,61528.0,61527.0,0.03385581]
[1727865750414,0.164346,61528.0,61527.0,0.02785581]
[1727865750655,0.163346,61528.0,61527.0,0.01785581]
[1727865751076,0.163346,61528.0,61527.0,0.004]
[1727865751292,0.163346,61528.0,61527.0,0.02185581]
[1727865751502,0.325875,61528.0,61523.0,0.162539]
[1727865751733,0.162532,61527.0,61523.0,0.162539]
[1727865752190,0.162532,61527.0,61524.0,0.0178568]
[1727865752624,0.162532,61527.0,61523.0,0.166539]
[1727865752840,0.163351,61527.0,61524.0,0.1803938]
[1727865753432,0.000819,61527.0,61526.0,0.333432]
[1727865753818,0.000819,61527.0,61526.0,0.35128814]
[1727865754202,0.000819,61527.0,61526.0,0.18875614]
[1727865754425,0.163349,61527.0,61526.0,0.18875614]
[1727865754743,0.000819,61527.0,61526.0,0.35128814]
[1727865755150,0.163349,61527.0,61526.0,0.19375614]
[1727865755743,0.000819,61527.0,61526.0,0.19375614]
[1727865755964,0.000819,61527.0,61526.0,0.35628814]
[1727865756158,0.000819,61527.0,61526.0,0.19375614]
[1727865756360,0.163349,61527.0,61526.0,0.19375614]
[1727865757146,0.000819,61527.0,61526.0,0.35628814]
[1727865757789,0.163349,61527.0,61526.0,0.19375614]
[1727865757998,0.000819,61527.0,61526.0,0.19375614]
[1727865758242,0.163349,61527.0,61526.0,0.19375614]
[1727865758896,0.163349,61527.0,61526.0,0.10005614]
[1727865759997,0.166349,61527.0,61526.0,0.09505614]
[1727865760448,0.166349,61527.0,61526.0,0.09705614]
[1727865760912,0.166349,61527.0,61526.0,0.09505614]
[1727865761145,0.33104345,61527.0,61526.0,0.01985614]
[1727865761391,0.3535275,61527.0,61526.0,0.002]
[1727865761610,0.3565275,61527.0,61526.0,0.018078]
[1727865762747,0.33104345,61527.0,61526.0,0.002]
[1727865762972,0.32804345,61527.0,61526.0,0.002]
[1727865763230,0.44104345,61527.0,61526.0,0.003]
[1727865763449,0.79868245,61527.0,61526.0,0.001]
[1727865763888,0.80668245,61527.0,61526.0,0.002]
[1727865764308,0.79868245,61527.0,61526.0,0.001]
[1727865764521,0.79868245,61527.0,61509.0,0.075]
[1727865764522,0.162564,61514.0,61509.0,0.075]
[1727865764729,0.32725845,61514.0,61509.0,0.075]
[1727865765149,0.162573,61511.0,61509.0,0.075]
[1727865765382,0.162573,61511.0,61510.0,0.01608273]
[1727865765603,0.162573,61511.0,61509.0,0.075]
[1727865765816,0.162573,61511.0,61510.0,0.01608273]
[1727865766039,0.162573,61511.0,61509.0,0.075]
[1727865766040,0.18806247,61511.0,61509.0,0.075]
[1727865766264,0.18806247,61511.0,61510.0,0.01608273]
[1727865766489,0.02548947,61511.0,61510.0,0.01608273]
[1727865766701,0.02548947,61511.0,61509.0,0.075]
[1727865766912,0.02548947,61511.0,61510.0,0.01608273]
[1727865767137,0.02548947,61511.0,61510.0,0.01708273]
[1727865767372,0.02548947,61511.0,61510.0,0.0188697]
[1727865767586,0.02548947,61511.0,61510.0,0.0268697]
[1727865767587,0.02648947,61511.0,61510.0,0.0268697]
[1727865770203,0.001,61511.0,61510.0,0.0268697]
[1727865770619,0.001,61511.0,61510.0,0.1894447]
[1727865770824,0.001,61511.0,61510.0,0.19269569]
[1727865771465,0.001,61511.0,61510.0,0.51585434]
[1727865771687,0.001,61511.0,61510.0,0.3638447]
[1727865775770,0.02648637,61511.0,61510.0,0.3638447]
[1727865777243,0.02648637,61511.0,61510.0,0.2012697]
[1727865777459,0.02648637,61511.0,61510.0,0.2695447]
[1727865778482,0.02648637,61511.0,61510.0,0.2711827]
[1727865780381,0.02648637,61511.0,61510.0,0.1086077]
[1727865780588,0.18905837,61511.0,61510.0,0.1086077]
[1727865780827,0.02648637,61511.0,61510.0,0.1086077]
[1727865781268,0.18905837,61511.0,61510.0,0.1086077]
[1727865781489,0.163572,61511.0,61510.0,0.1086077]
[1727865781712,0.001,61511.0,61510.0,0.1086077]
[1727865783273,0.001,61511.0,61510.0,0.2711827]
[1727865783733,0.001,61511.0,61510.0,0.1086077]
[1727865784558,0.02648908,61511.0,61510.0,0.1086077]
[1727865786325,0.02648908,61511.0,61510.0,0.2711827]
[1727865786533,0.02648908,61511.0,61510.0,0.1086777]
[1727865787010,0.02648908,61511.0,61510.0,0.2712527]
[1727865787846,0.02648908,61511.0,61510.0,0.1086777]
[1727865789361,0.18906108,61511.0,61510.0,0.1086777]
[1727865789596,0.18906108,61511.0,61510.0,0.0285777]
[1727865789597,0.35375553,61511.0,61510.0,0.0285777]
[1727865790045,0.35375553,61511.0,61510.0,0.010708]
[1727865791253,0.35375553,61511.0,61510.0,0.02861228]
[1727865792984,0.32826645,61511.0,61510.0,0.02861228]
[1727865794878,0.32826645,61511.0,61510.0,0.010708]
[1727865795550,0.32826645,61511.0,61510.0,0.02861569]
[1727865795779,0.32826645,61511.0,61510.0,0.02861722]
[1727865796196,0.35375599,61511.0,61510.0,0.02861722]
[1727865797863,0.35375599,61511.0,61510.0,0.010708]
[1727865799162,0.35375599,61511.0,61510.0,0.02861722]
[1727865799389,0.35375599,61511.0,61510.0,0.010708]
[1727865799838,0.35375599,61511.0,61510.0,0.02861722]
[1727865800065,0.35375599,61511.0,61510.0,0.010708]
[1727865801310,0.35375599,61511.0,61510.0,0.02861722]
[1727865801573,0.35375599,61511.0,61510.0,0.010708]
[1727865801968,0.35275599,61511.0,61510.0,0.002708]
[1727865803199,0.35475599,61511.0,61510.0,0.002708]
[1727865803616,0.35475599,61511.0,61510.0,0.001708]
[1727865803827,0.36175599,61511.0,61510.0,0.001708]
[1727865804256,0.33626645,61511.0,61510.0,0.001708]
[1727865807190,0.3617582,61511.0,61510.0,0.001708]
[1727865808657,0.3617582,61511.0,61510.0,0.084708]
[1727865808658,0.03449175,61511.0,61510.0,0.084708]
[1727865808867,0.03449175,61511.0,61510.0,0.10085792]
[1727865809291,0.009,61511.0,61510.0,0.10085792]
[1727865809950,0.009,61511.0,61510.0,0.26343292]
[1727865810597,0.002,61511.0,61510.0,0.26668404]
[1727865810811,0.162557,61517.0,61512.0,0.325137]
[1727865811020,0.24305865,61516.0,61514.0,0.325127]
[1727865811224,0.16469445,61519.0,61515.0,0.01613394]
[1727865811441,0.32724745,61519.0,61516.0,0.162558]
[1727865811685,0.16469445,61519.0,61517.0,0.01613335]
[1727865811892,0.32724645,61519.0,61517.0,0.01613335]